Workbook

Sheet Revision
A2: PLL, System and Peripheral Clock Generation Tool
A4: Version | B4: Date | C4: Comments
A5: 1.0.0 | B5: 2015-09-25 | C5: Initial Release
A20: Applicable Devices
A21: Key stone multicore C667x DSP
A23: GEL File Details
A24: File Name: EVMC6678L.gel
A25: Revision: 2.0005

Sheet Instructions
B1: INSTRUCTIONS
A3: SL. No | B3: Usability
A4: 1 | B4: The yellow highlighted fields are user accessible. | D4: INPUTS
A5: 2 | B5: The orange highlighted fields are fixed ratios. User do not have access to change this. | D5: FIXED RATIOS
A6: 3 | B6: The blue highlighted fields are output. User do not have access to change this. | D6: OUTPUTS
A7: 4 | B7: The user need to work on the Main_PLL tab first to get the desired SYSCLKs and then move on to other tabs.
A9: SL. No | B9: Main_PLL
A10: 1 | B10: Excel macros need to be enabled in order to have the GEL default button operational.
A11: 2 | B11: The user could load the GEL default values on PLLM, PLLD etc., by clicking "GEL DEFAULT" button in Main_PLL section. This will load the default values in Main_PLL, PASS_PLL and DDR3_PLL sections.
A12: 3 | B12: Device speed can be selected from drop down menu.
A13: 4 | B13: Standard SYSCLK values are available in the drop down menu. Do not use 100.00001 as this is used for internal calculations. When SYSCLK value is selected, the PLLD, PLLM and CLKOD fields are updated with predefined value.
A14: 5 | B14: When the user want to use custom clock, they need to select "CUSTOM" in SYSCLK field and value can be entered in CUSTOMCLK field. In this case, the PLLD, PLLM and CLKOD values could be entered manually in user input fields.
A15: 6 | B15: In order to minimize the output jitter, choose a configuration that maximizes VCO frequency. Then divide that frequency through the output divide (CLKOD) to their desired output frequency.
A16: 7 | B16: The PLLEN and PLLENSRC fields must be selected accordingly to enable the PLL output.
A17: 8 | B17: The user field values are decimal equivalent of register values. Hence the value would added by 1 for calculation.
A18: 9 | B18: When "OUT OF RANGE" message is shown in PLLM output/SYSCLKs, the user inputs need to be changed to set these value under the limits.
A19: 10 | B19: Putting the PLL in bypass mode changes the SYSCLK outputs to INVALID.
A21: SL. No | B21: PASS_PLL
A22: 1 | B22: The PACLKSEL is available to choose the input either from CORECLK or PASSCLK.
A23: 2 | B23: When CORECLK is selected as input and standard input clock is selected, the PLL fields are updated with predefined values.
A24: 3 | B24: When CORECLK is selected as input and set into custom value, the user need to enter PLL fields manually.
A25: 4 | B25: When PASSCLK is selected as input, the user need to enter PLLD, PLLM and CLKOD fields manually.
A26: 5 | B26: There is another mux available where user can select either PASS PLL output or SYSCLK1 (Test Mode) to the PASS by changing PLLSELECT field.
A27: 6 | B27: The user field values are decimal equivalent of register values. Hence the value would added by 1 for calculation.
A28: 7 | B28: When "OUT OF RANGE" message is shown in PLLM output/PLL output, the user inputs need to be changed to set these value under the limits.
A29: 8 | B29: Putting the PLL in bypass mode changes the output clock to INVALID.
A31: SL. No | B31: DDR3_PLL
A32: 1 | B32: The user want to enter the DDR3CLK and all PLL fields manually.
A33: 2 | B33: The user field values are decimal equivalent of register values. Hence the value would added by 1 for calculation.
A34: 3 | B34: When "OUT OF RANGE" message is shown in PLLM output/PLL output/DDR3 data rate, the user inputs need to be changed to set these value under the limits.
A35: 4 | B35: Putting the PLL in bypass mode changes the DDR3 data rate to INVALID.
A37: SL. No | B37: PCIe
A38: 1 | B38: The user has to select the PCIe0CLK and PCIe mode from drop down menu.
A39: 2 | B39: The PLL fields would be loaded internally and outputs line rate.
A41: SL. No | B41: SRIO
A42: 1 | B42: The user has to select the SRIOSGMIICLK and line rate from drop down menu.
A43: 2 | B43: The PLL fields would be loaded internally and outputs line rate.
A45: SL. No | B45: SGMII
A46: 1 | B46: The user has to select the SRIOSGMIICLK from drop down menu.
A47: 2 | B47: The PLL fields would be loaded internally and outputs line rate.
A49: SL. No | B49: MDIO
A50: 1 | B50: The SGMII PLL OUTPUT is considered as an input clock to the MDIO module.
A51: 2 | B51: The user could enter the CLKDIV field manually.
A52: 3 | B52: The CLKDIV value is decimal equivalent of register values. Hence the value would added by 1 for calculation.
A53: 4 | B53: When "OUT OF RANGE" message is shown in MDIO clock, the CLKDIV need to be changed.
A55: SL. No | B55: HYPERLINK
A56: 1 | B56: The user need to select the MCMCLK and PLL MPY fields from drop down menu.
A57: 2 | B57: The PLL MPY value is decimal value and corresponding register value is predefined.
A58: 3 | B58: When "OUT OF RANGE" message is shown in Hyperlink PLL output, the CLKDIV can be changed.
A60: SL. No | B60: EMIF16
A61: 1 | B61: EMIF clock is derived from SYSCLK7. i.e. SYSCLK1/6.
A62: 2 | B62: The clock period is calculated and shown.
A64: SL. No | B64: TIMER
A65: 1 | B65: The timer source clock can be selected among SYSCLK1 and external clock through TIEN_LO.
A66: 2 | B66: The user need to enter the external clock manually.
A67: 3 | B67: The INVINP_LO could be used for clock inversion.
A68: 4 | B68: The CLKSRC_LO controls the second mux.
A70: SL. No | B70: I2C
A71: 1 | B71: The input clock source to the I2C controller is SYSCLK7.
A72: 2 | B72: The user need to select IPSC field from the drop down menu.
A73: 3 | B73: The ICCL and ICCH needs to be entered manually.
A74: 4 | B74: The user fields are decimal equivalent of register value. Hence the value would added by 1 for calculation.
A76: SL. No | B76: SPI
A77: 1 | B77: The input clock source to the SPI controller is SYSCLK7.
A78: 2 | B78: The user need to select Prescal field from the drop down menu.
A79: 3 | B79: The prescale is decimal equivalent of register value. Hence the value would added by 1 for calculation.
A81: SL. No | B81: UART
A82: 1 | B82: The input clock source to the UART controller is SYSCLK7.
A83: 2 | B83: The register values are available for both x16 and x13 over sampling mode.

Sheet Clocking Diagram

Sheet Main_PLL
F2: C667x SYSTEM PLL CALCULATOR
I5: SYSTEM PLL | O5: Main PLL output clock (PLLOUT) = (CLKIN × (PLLM+1)) ÷ ((CLKOD+1) × (PLLD+1))
B6: Device Speed
B7: 1000 | J7: =IF(J8<415,"OUT OF RANGE",IF(J8>3400,"OUT OF RANGE","")) -> 
B8: CORECLK (P/N) | D8: =(J434) -> 100 | G8: PLLD | H8: =IF(J432,SUM(D8/G432),SUM(D8/G433)) -> 100 | J8: =IF(J432,SUM(H8*H432),SUM(H8*H433)) -> 2000 | K8: CLKOD | L8: =SUM(J8/(K9+1)) -> 1000
B9: 100 | G9: =IF(J432,L448,"CUSTOM") -> 0 | K9: 1 | V9: 1/6 | W9: =IF(J16=1,"",IF(W10<125,"OUT OF RANGE",IF(W10>(B7/6*1.01),"OUT OF RANGE",""))) -> 
B10: CUSTOM CLK | G10: 0 | I10: PLLM | N10: =IF(J16,G12,L8) -> 1000 | W10: =SUM(P12/6) -> 166.6666667 | X10: SYSCLKOUT
B11: 50 | I11: =IF(J432,L449,"CUSTOM") -> 19
G12: =IF(J432,B9,B11) -> 100 | I12: 13 | P12: =IF(O26,N10,D8) -> 1000 | W12: =IF(J16=1,"",IF(W13<750,"OUT OF RANGE",IF(W13>(B7*1.01),"OUT OF RANGE",""))) -> 
B13: Note: Do not use 100.00001 in CORECLK drop down list | T13: PLLLDIV1 | U13: 1 | W13: =IF(J16,"INVALID",SUM(P12/U13)) -> 1000 | X13: SYSCLK1
J15: BYPASS | W15: =IF(J16=1,"",IF(W16>350,"OUT OF RANGE","")) -> 
J16: 0 | T16: PLLLDIV2 | U16: 3 | W16: =IF(J16,"INVALID",SUM(P12/(U16+1))) -> 250 | X16: SYSCLK2
B17: FIXED RATIOS
B18: INPUTS
B19: OUTPUTS | T19: PLLLDIV3 | U19: 2 | W19: =IF(J16,"INVALID",SUM(P12/(U19))) -> 500 | X19: SYSCLK3
A21: Registers:
A22: Name | B22: Bit Position | C22: Value | T22: PLLLDIV4 | U22: 3 | W22: =IF(J16,"INVALID",SUM(P12/(U22))) -> 333.3333333 | X22: SYSCLK4
A23: MAINPLLCTL0.PLLD | B23: 5 : 0 | C23: =IF(J432,CONCATENATE("0x",DEC2HEX(G9,2)),CONCATENATE("0x",DEC2HEX(G10,2))) -> 0x00
A24: MAINPLLCTL0.PLLM[12:6] & PLLM[5:0] | B24: 18 : 12 & 5 : 0 | C24: =IF(J432,CONCATENATE("0x",DEC2HEX(I11,4)),CONCATENATE("0x",DEC2HEX(I12,4))) -> 0x0013 | W24: =IF(J16=1,"",IF(W25>210,"OUT OF RANGE",IF(W25<32,"OUT OF RANGE",""))) -> 
F25: Note: | M25: 0 | T25: PLLLDIV5 | U25: 5 | W25: =IF(J16,"INVALID",SUM(P12/(U25+1))) -> 166.6666667 | X25: SYSCLK5
A26: SECCTL.OUTPUT DIVIDE | B26: 22 :19 | C26: =IF(J432,CONCATENATE("0x",DEC2HEX(K9,1)),CONCATENATE("0x",DEC2HEX(K10,1))) -> 0x1 | F26: 1. Please refer instructions for clarification on actual PLLD/PLLM and its register value. | O26: =IF(M33,M25,M29) -> 1
A27: SECCTL.BYPASS | B27: 23 | C27: =CONCATENATE("0x",DEC2HEX(J16,1)) -> 0x0 | F27: 2. Initial silicon V1.0 may support only 800 MHz, 1000 MHz, and 1200 MHz frequencies by default.
A28: PLLCTL.PLLEN | B28: 0 | C28: =CONCATENATE("0x",DEC2HEX(M29,1)) -> 0x1 | F28: 3. In case any of the other programmable SYSCLKs are set slower than 1/64 rate, then SYSCLK8 (SLOW_SYSCLK) must be programmed to either match, or be slower than, the slowest SYSCLK in the system. | M28: PLLEN | T28: PLLLDIV6 | U28: 64 | W28: =IF(J16,"INVALID",SUM(P12/(U28))) -> 15.625 | X28: SYSCLK6
A29: PLLCTL.PLLENSRC | B29: 5 | C29: =CONCATENATE("0x",DEC2HEX(M33,1)) -> 0x0 | M29: 1
A30: PLLDIV2.RATIO | B30: 7 : 0 | C30: =CONCATENATE("0x",DEC2HEX(U16,2)) -> 0x03
A31: PLLDIV5.RATIO | B31: 7 : 0 | C31: =CONCATENATE("0x",DEC2HEX(U25,2)) -> 0x05 | T31: PLLLDIV7 | U31: 6 | W31: =IF(J16,"INVALID",SUM(P12/(U31))) -> 166.6666667 | X31: SYSCLK7
A32: PLLDIV8.RATIO | B32: 7 : 0 | C32: =CONCATENATE("0x",DEC2HEX(U34,2)) -> 0x40 | M32: PLLENSRC
M33: 0
T34: PLLLDIV8 | U34: 64 | W34: =IF(J16,"INVALID",SUM(P12/(U34+1))) -> 15.38461538 | X34: SYSCLK8
T37: PLLLDIV9 | U37: 12 | W37: =IF(J16,"INVALID",SUM(P12/(U37))) -> 83.33333333 | X37: SYSCLK9
T40: PLLLDIV10 | U40: 3 | W40: =IF(J16,"INVALID",SUM(P12/(U40))) -> 333.3333333 | X40: SYSCLK10
T43: PLLLDIV11 | U43: 6 | W43: =IF(J16,"INVALID",SUM(P12/(U43))) -> 166.6666667 | X43: SYSCLK11
A431: PLLDIVx | B431: PREDIV | D431: CLKOD | E431: PLLM | F431: PLLEN | G431: PREDIVPLUS1 | H431: PLLMPLUS1 | I431: OUTPUTDIV | L431: Device Speed | T431: Device Speed
A432: 0 | B432: 0 | D432: 0 | E432: 0 | F432: 0 | G432: =G9+1 -> 1 | H432: =I11+1 -> 20 | I432: =SUM(K9+1) -> 2 | J432: =IF(B9<>"CUSTOM",1,0) -> 1 | L432: 800 | M432: 1000 | N432: 1200 | O432: 1250 | T432: 800 | U432: 1000 | V432: 1200 | W432: 1250
A433: 1 | B433: 1 | D433: 1 | E433: 1 | F433: 1 | G433: =G10+1 -> 1 | H433: =I12+1 -> 14 | J433: =IF(J432,1,(IF(J16,1,(IF(R10=B7,1,0))))) -> 1 | K433: Input Clock freq | L433: PLLD | M433: PLLD | N433: PLLD | O433: PLLD | S433: Input Clock freq | T433: PLLM | U433: PLLM | V433: PLLM | W433: PLLM
A434: 2 | B434: 2 | D434: 3 | E434: 2 | J434: =IF(J432,B9,B11) -> 100 | K434: 50 | L434: 0 | M434: 0 | N434: 0 | O434: 0 | S434: 50 | T434: 31 | U434: 39 | V434: 47 | W434: 49
A435: 3 | B435: 3 | D435: 5 | E435: 3 | G435: PLLDIV1 | H435: =SUM(U13+1) -> 2 | K435: 66.67 | L435: 0 | M435: 0 | N435: 0 | O435: 1 | S435: 66.67 | T435: 23 | U435: 29 | V435: 35 | W435: 74
A436: 4 | B436: 4 | D436: 7 | E436: 4 | G436: PLLDIV2 | H436: =SUM(U16+1) -> 4 | K436: 80 | L436: 0 | M436: 0 | N436: 0 | O436: 3 | S436: 80 | T436: 19 | U436: 24 | V436: 29 | W436: 124
A437: 5 | B437: 5 | D437: 9 | E437: 5 | G437: PLLDIV3 | H437: =SUM(U19+1) -> 3 | J437: =IF(J16=1,0,IF(W13<750,1,IF(W13>B7*1.01,1,0))) -> 0 | K437: 100 | L437: 0 | M437: 0 | N437: 0 | O437: 0 | S437: 100 | T437: 15 | U437: 19 | V437: 23 | W437: 24
A438: 6 | B438: 6 | D438: 11 | E438: 6 | G438: PLLDIV4 | H438: =SUM(U22+1) -> 4 | J438: =IF(J16=1,0,IF(W16>350,1,0)) -> 0 | K438: 100.00001 | M438: 1 | S438: 100.00001 | U438: 39
A439: 7 | B439: 7 | D439: 13 | E439: 7 | G439: PLLDIV5 | H439: =SUM(U31+1) -> 7 | J439: =IF(J16=1,0,IF(W25<32,1,IF(W25>210,1,0))) -> 0 | K439: 156.25 | L439: 24 | M439: 4 | N439: 24 | O439: 0 | S439: 156.25 | T439: 255 | U439: 63 | V439: 383 | W439: 15
A440: 8 | B440: 8 | D440: 15 | E440: 8 | G440: PLLDIV6 | H440: =SUM(U32+1) -> 1 | K440: 250 | L440: 4 | M440: 0 | N440: 4 | O440: 0 | S440: 250 | T440: 31 | U440: 7 | V440: 47 | W440: 9
A441: 9 | B441: 9 | E441: 9 | G441: PLLDIV7 | H441: =SUM(U45+1) -> 1 | K441: 312.5 | L441: 24 | M441: 4 | N441: 24 | O441: 0 | S441: 312.5 | T441: 127 | U441: 31 | V441: 191 | W441: 7
A442: 10 | B442: 10 | E442: 10 | G442: PLLDIV8 | H442: =SUM(U46+1) -> 1 | K442: 122.88 | L442: 47 | M442: 28 | N442: 31 | O442: 2 | S442: 122.88 | T442: 624 | U442: 471 | V442: 624 | W442: 60
A443: 11 | B443: 11 | E443: 11 | G443: PLLDIV9 | H443: =SUM(U48+1) -> 1 | K443: CUSTOM
A444: 12 | B444: 12 | E444: 12 | G444: PLLDIV10 | H444: =SUM(U50+1) -> 1
A445: 13 | B445: 13 | E445: 13 | G445: PLLDIV11 | H445: =SUM(U52+1) -> 1
A446: 14 | B446: 14 | E446: 14 | G446: PLLDIV12 | H446: =SUM(T54+1) -> 1 | K446: Input Freq | L446: =B9 -> 100
A447: 15 | B447: 15 | E447: 15 | G447: PLLDIV13 | H447: =SUM(T56+1) -> 1 | K447: Device Speed | L447: =B7 -> 1000
A448: 16 | B448: 16 | E448: 16 | G448: PLLDIV14 | H448: =SUM(T58+1) -> 1 | K448: PLLD | L448: =VLOOKUP(B9,K434:O442,MATCH(B7,L432:O432)+1,FALSE) -> 0
A449: 17 | B449: 17 | E449: 17 | G449: PLLDIV15 | H449: =SUM(T60+1) -> 1 | K449: PLLM | L449: =VLOOKUP(B9,S434:W442,MATCH(B7,T432:W432)+1,FALSE) -> 19
A450: 18 | B450: 18 | E450: 18 | G450: PLLDIV16 | H450: =SUM(T62+1) -> 1
A451: 19 | B451: 19 | E451: 19
A452: 20 | B452: 20 | E452: 20
A453: 21 | B453: 21 | E453: 21
A454: 22 | B454: 22 | E454: 22
A455: 23 | B455: 23 | E455: 23
A456: 24 | B456: 24 | E456: 24
A457: 25 | B457: 25 | E457: 25
A458: 26 | B458: 26 | E458: 26
A459: 27 | B459: 27 | E459: 27
A460: 28 | B460: 28 | E460: 28
A461: 29 | B461: 29 | E461: 29
A462: 30 | B462: 30 | E462: 30
A463: 31 | B463: 31 | E463: 31
A464: 32 | B464: 32 | E464: 32
A465: 33 | B465: 33 | E465: 33
A466: 34 | B466: 34 | E466: 34
A467: 35 | B467: 35 | E467: 35
A468: 36 | B468: 36 | E468: 36
A469: 37 | B469: 37 | E469: 37
A470: 38 | B470: 38 | E470: 38
A471: 39 | B471: 39 | E471: 39
A472: 40 | B472: 40 | E472: 40
A473: 41 | B473: 41 | E473: 41
A474: 42 | B474: 42 | E474: 42
A475: 43 | B475: 43 | E475: 43
A476: 44 | B476: 44 | E476: 44
A477: 45 | B477: 45 | E477: 45
A478: 46 | B478: 46 | E478: 46
A479: 47 | B479: 47 | E479: 47
A480: 48 | B480: 48 | E480: 48
A481: 49 | B481: 49 | E481: 49
A482: 50 | B482: 50 | E482: 50
A483: 51 | B483: 51 | E483: 51
A484: 52 | B484: 52 | E484: 52
A485: 53 | B485: 53 | E485: 53
A486: 54 | B486: 54 | E486: 54
A487: 55 | B487: 55 | E487: 55
A488: 56 | B488: 56 | E488: 56
A489: 57 | B489: 57 | E489: 57
A490: 58 | B490: 58 | E490: 58
A491: 59 | B491: 59 | E491: 59
A492: 60 | B492: 60 | E492: 60
A493: 61 | B493: 61 | E493: 61
A494: 62 | B494: 62 | E494: 62
A495: 63 | B495: 63 | E495: 63
A496: 64 | B496: 64 | E496: 64
A497: 65 | B497: 65 | E497: 65
A498: 66 | B498: 66 | E498: 66
A499: 67 | B499: 67 | E499: 67
A500: 68 | B500: 68 | E500: 68
A501: 69 | B501: 69 | E501: 69
A502: 70 | B502: 70 | E502: 70
A503: 71 | B503: 71 | E503: 71
A504: 72 | B504: 72 | E504: 72
A505: 73 | B505: 73 | E505: 73
A506: 74 | B506: 74 | E506: 74
A507: 75 | B507: 75 | E507: 75
A508: 76 | B508: 76 | E508: 76
A509: 77 | B509: 77 | E509: 77
A510: 78 | B510: 78 | E510: 78
A511: 79 | B511: 79 | E511: 79
A512: 80 | B512: 80 | E512: 80
A513: 81 | E513: 81
A514: 82 | E514: 82
A515: 83 | E515: 83
A516: 84 | E516: 84
A517: 85 | E517: 85
A518: 86 | E518: 86
A519: 87 | E519: 87
A520: 88 | E520: 88
A521: 89 | E521: 89
A522: 90 | E522: 90
A523: 91 | E523: 91
A524: 92 | E524: 92
A525: 93 | E525: 93
A526: 94 | E526: 94
A527: 95 | E527: 95
A528: 96 | E528: 96
A529: 97 | E529: 97
A530: 98 | E530: 98
A531: 99 | E531: 99
A532: 100 | E532: 100
A533: 101 | E533: 101
A534: 102 | E534: 102
A535: 103 | E535: 103
A536: 104 | E536: 104
A537: 105 | E537: 105
A538: 106 | E538: 106
A539: 107 | E539: 107
A540: 108 | E540: 108
A541: 109 | E541: 109
A542: 110 | E542: 110
A543: 111 | E543: 111
A544: 112 | E544: 112
A545: 113 | E545: 113
A546: 114 | E546: 114
A547: 115 | E547: 115
A548: 116 | E548: 116
A549: 117 | E549: 117
A550: 118 | E550: 118
A551: 119 | E551: 119
A552: 120 | E552: 120
A553: 121 | E553: 121
A554: 122 | E554: 122
A555: 123 | E555: 123
A556: 124 | E556: 124
A557: 125 | E557: 125
A558: 126 | E558: 126
A559: 127 | E559: 127
A560: 128 | E560: 128
A561: 129 | E561: 129
A562: 130 | E562: 130
A563: 131 | E563: 131
A564: 132 | E564: 132
A565: 133 | E565: 133
A566: 134 | E566: 134
A567: 135 | E567: 135
A568: 136 | E568: 136
A569: 137 | E569: 137
A570: 138 | E570: 138
A571: 139 | E571: 139
A572: 140 | E572: 140
A573: 141 | E573: 141
A574: 142 | E574: 142
A575: 143 | E575: 143
A576: 144 | E576: 144
A577: 145 | E577: 145
A578: 146 | E578: 146
A579: 147 | E579: 147
A580: 148 | E580: 148
A581: 149 | E581: 149
A582: 150 | E582: 150
A583: 151 | E583: 151
A584: 152 | E584: 152
A585: 153 | E585: 153
A586: 154 | E586: 154
A587: 155 | E587: 155
A588: 156 | E588: 156
A589: 157 | E589: 157
A590: 158 | E590: 158
A591: 159 | E591: 159
A592: 160 | E592: 160
A593: 161 | E593: 161
A594: 162 | E594: 162
A595: 163 | E595: 163
A596: 164 | E596: 164
A597: 165 | E597: 165
A598: 166 | E598: 166
... 3929 more rows

Sheet PASS_PLL
F1: PASS PLL CLOCKING SECTION
F10: NETCP PLL
P11: SYSCLK1
C12: =IF(Main_PLL!B9="CUSTOM","CUSTOM","") ->  | J12: =IF(J13<700,"OUT OF RANGE",IF(J13>4000,"OUT OF RANGE","")) ->  | P12: =(Main_PLL!W13) -> 1000
B13: CORECLK (P/N) | C13: =(Main_PLL!G12) -> 100 | F13: =IF(C19,C15,C13) -> 100 | G13: PLLD | H13: =IF(Main_PLL!B9="CUSTOM",SUM(F13/(G15+1)),IF(C19,SUM(F13/(G15+1)),SUM(F13/(G14+1)))) -> 100 | J13: =IF(Main_PLL!B9="CUSTOM",SUM(H13*D197),IF(C19,SUM(H13*D197),SUM(H13*D196))) -> 2100 | K13: ÷ | L13: =SUM(J13/(K14)) -> 1050
G14: =IF(C19,"EXTERNAL",IF(Main_PLL!B9="CUSTOM","CUSTOM",K211)) -> 0 | I14: 19 | K14: 2 | N14: =IF(J22,"",(IF(N16<1040,"OUT OF RANGE",IF(N16>1051,"OUT OF RANGE","")))) ->  | T14: =IF(P22,"","TEST MODE") -> 
B15: PASSCLK (P/N) | C15: 200 | G15: 0 | N15: =IF(J22,"",(IF(N16<1040,"AFFECTS THROUGHPUT",IF(N16>1051,"AFFECTS THROUGHPUT","")))) -> 
I16: PLLM | N16: =IF(J22,K18,L13) -> 1050 | R16: ÷ | T16: =IF(J22,IF(P22,"INVALID",IF(P22,M196,M197)),IF(P22,M196,M197)) -> 350
I17: =IF(C19,"EXTERNAL",IF(Main_PLL!B9="CUSTOM","CUSTOM",Q211)) -> 20 | R17: 3
C18: PACLKSEL | I18: 19 | J18: 0 | K18: =SUM(F13) -> 100
C19: 0
J21: BYPASS | P21: PLLSELECT
J22: 0 | P22: 1
B24: Registers:
B25: Name | C25: Bit Position | D25: Value | O25: Note: SYSCLK is for test mode and it is not meant for operational use. The PLL SELECT must never be toggled during operation as this can corrupt the PASS.
B26: PASSPLLCTL0.PLLD | C26: 5 : 0 | D26: =IF(G14="EXTERNAL",CONCATENATE("0x",DEC2HEX(G15,2)),IF(G14="CUSTOM",CONCATENATE("0x",DEC2HEX(G15,2)),CONCATENATE("0x",DEC2HEX(G14,2)))) -> 0x00
B27: PASSPLLCTL0.PLLM | C27: 18 : 6 | D27: =IF(I17="EXTERNAL",CONCATENATE("0x",DEC2HEX(I18,2)),IF(I17="CUSTOM",CONCATENATE("0x",DEC2HEX(I18,2)),CONCATENATE("0x",DEC2HEX(I17,2)))) -> 0x14 | F27: Note:
B28: PASSPLLCTL0.BYPASS | C28: 23 | D28: =CONCATENATE("0x",DEC2HEX(J22,1)) -> 0x0 | F28: Please refer instructions for clarification on actual PLLD/PLLM and its register value.
B29: PASSPLLCTL1.PLLSELECT | C29: 13 | D29: =CONCATENATE("0x",DEC2HEX(O22,1)) -> 0x0
A195: PLLD | B195: PACLKSEL | C195: PLLM | D195: PLLMPLUS | F195: BYPASS | G195: CLKOD | I195: PAPLL | K195: Device Speed | L195: NETCPPLLCTL1.PAPLL | M195: Divide by 3 | Q195: Device Speed
A196: 0 | B196: 0 | C196: 0 | D196: =SUM(I17+1) -> 21 | F196: 0 | G196: 0 | H196: 156.25 | I196: NETCP_PLL | K196: 350 | L196: 0 | M196: =N16/R17 -> 350 | Q196: 350
A197: 1 | B197: 1 | C197: 1 | D197: =SUM(I18+1) -> 20 | F197: 1 | G197: 1 | H197: 312.5 | I197: SYSCLK1 | J197: Input Clock freq | K197: PLLD | L197: 1 | M197: =IF(P12="INVALID","INVALID",SUM(P12/R17)) -> 333.3333333 | P197: Input Clock freq | Q197: PLLM
A198: 2 | C198: 2 | G198: 3 | J198: 50 | K198: 0 | P198: 50 | Q198: 41
A199: 3 | C199: 3 | G199: 5 | J199: 66.67 | K199: 1 | P199: 66.67 | Q199: 62
A200: 4 | C200: 4 | G200: 7 | H200: =IF(J22=1,0,IF(N16<1040,1,IF(N16>1051,1,0))) -> 0 | J200: 80 | K200: 3 | P200: 80 | Q200: 104
A201: 5 | C201: 5 | G201: 9 | J201: 100 | K201: 0 | P201: 100 | Q201: 20
A202: 6 | C202: 6 | G202: 11 | J202: 100.00001 | K202: 0 | P202: 100.00001 | Q202: 20
A203: 7 | C203: 7 | G203: 13 | J203: 156.25 | K203: 24 | P203: 156.25 | Q203: 335
A204: 8 | C204: 8 | G204: 15 | J204: 250 | K204: 4 | P204: 250 | Q204: 41
A205: 9 | C205: 9 | J205: 312.5 | K205: 24 | P205: 312.5 | Q205: 167
A206: 10 | C206: 10 | J206: 122.88 | K206: 11 | P206: 122.88 | Q206: 204
A207: 11 | C207: 11 | G207: =IF(G14="EXTERNAL",1,IF(G14="CUSTOM",1,0)) -> 0
A208: 12 | C208: 12 | G208: =IF(I17="EXTERNAL",1,IF(I17="CUSTOM",1,0)) -> 0
A209: 13 | C209: 13 | G209: =IF(K14="EXTERNAL",1,IF(K14="CUSTOM",1,0)) -> 0 | J209: Input Freq | K209: =C13 -> 100
A210: 14 | C210: 14 | J210: Devcie Speed | K210: 350
A211: 15 | C211: 15 | J211: PLLD | K211: =VLOOKUP(K209,J198:K206,MATCH(K210,K196)+1,FALSE) -> 0 | P211: PLLM | Q211: =VLOOKUP(K209,P198:Q206,MATCH(K210,Q196)+1,FALSE) -> 20
A212: 16 | C212: 16
A213: 17 | C213: 17
A214: 18 | C214: 18
A215: 19 | C215: 19
A216: 20 | C216: 20
A217: 21 | C217: 21
A218: 22 | C218: 22
A219: 23 | C219: 23
A220: 24 | C220: 24
A221: 25 | C221: 25
A222: 26 | C222: 26
A223: 27 | C223: 27
A224: 28 | C224: 28
A225: 29 | C225: 29
A226: 30 | C226: 30
A227: 31 | C227: 31
A228: 32 | C228: 32
A229: 33 | C229: 33
A230: 34 | C230: 34
A231: 35 | C231: 35
A232: 36 | C232: 36
A233: 37 | C233: 37
A234: 38 | C234: 38
A235: 39 | C235: 39
A236: 40 | C236: 40
A237: 41 | C237: 41
A238: 42 | C238: 42
A239: 43 | C239: 43
A240: 44 | C240: 44
A241: 45 | C241: 45
A242: 46 | C242: 46
A243: 47 | C243: 47
A244: 48 | C244: 48
A245: 49 | C245: 49
A246: 50 | C246: 50
A247: 51 | C247: 51
A248: 52 | C248: 52
A249: 53 | C249: 53
A250: 54 | C250: 54
A251: 55 | C251: 55
A252: 56 | C252: 56
A253: 57 | C253: 57
A254: 58 | C254: 58
A255: 59 | C255: 59
A256: 60 | C256: 60
A257: 61 | C257: 61
A258: 62 | C258: 62
A259: 63 | C259: 63
C260: 64
C261: 65
C262: 66
C263: 67
C264: 68
C265: 69
C266: 70
C267: 71
C268: 72
C269: 73
C270: 74
C271: 75
C272: 76
C273: 77
C274: 78
C275: 79
C276: 80
C277: 81
C278: 82
C279: 83
C280: 84
C281: 85
C282: 86
C283: 87
C284: 88
C285: 89
C286: 90
C287: 91
C288: 92
C289: 93
C290: 94
C291: 95
C292: 96
C293: 97
C294: 98
C295: 99
C296: 100
C297: 101
C298: 102
C299: 103
C300: 104
C301: 105
C302: 106
C303: 107
C304: 108
C305: 109
C306: 110
C307: 111
C308: 112
C309: 113
C310: 114
C311: 115
C312: 116
C313: 117
C314: 118
C315: 119
C316: 120
C317: 121
C318: 122
C319: 123
C320: 124
C321: 125
C322: 126
C323: 127
C324: 128
C325: 129
C326: 130
C327: 131
C328: 132
C329: 133
C330: 134
C331: 135
C332: 136
C333: 137
C334: 138
C335: 139
C336: 140
C337: 141
C338: 142
C339: 143
C340: 144
C341: 145
C342: 146
C343: 147
C344: 148
C345: 149
C346: 150
C347: 151
C348: 152
C349: 153
C350: 154
C351: 155
C352: 156
C353: 157
C354: 158
C355: 159
C356: 160
C357: 161
C358: 162
C359: 163
C360: 164
C361: 165
C362: 166
C363: 167
C364: 168
C365: 169
C366: 170
C367: 171
C368: 172
C369: 173
C370: 174
C371: 175
C372: 176
C373: 177
C374: 178
C375: 179
... 3916 more rows

Sheet DDR3_PLL
F1: DDR3 CLOCKING SECTION
I4: DDR3 PLL
I6: =IF(I7<700,"OUT OF RANGE",IF(I7>4000,"OUT OF RANGE","")) -> 
C7: DDR3CLK (P/N) | F7: PLLD | G7: =SUM(C8/E187) -> 66.667 | I7: =SUM(G7*F187) -> 1133.339 | K7: ÷ | L7: =SUM(I7/(K8)) -> 566.6695
C8: 66.667 | F8: 0 | K8: 2 | N8: =IF(I14,"",IF(N9<400,"OUT OF RANGE",IF(N9>800,"OUT OF RANGE",""))) -> 
N9: =IF(I14,K11,L7) -> 566.6695 | O9: DDR3 CLKOUT
H10: PLLM | O10: =IF(I14,"INVALID",(N9)) -> 566.6695
H11: 16 | K11: =SUM(C8) -> 66.667 | O11: =IF(I14,"",IF(O10<400,"OUT OF RANGE",IF(O10>800,"OUT OF RANGE",""))) -> 
I13: BYPASS | O13: DDR3 Data Rate
I14: 0 | O14: =IF(I14,"INVALID",(O10*2)) -> 1133.339
A15: Registers: | O15: =IF(I18,"",IF(O14<800,"OUT OF RANGE",IF(O14>1600,"OUT OF RANGE",""))) -> 
A16: Name | B16: Bit Position | C16: Value
A17: DDR3PLLCTL0.PLLD | B17: 5 : 0 | C17: =CONCATENATE("0x",DEC2HEX(F8,2)) -> 0x00 | F17: Note:
A18: DDR3PLLCTL0.PLLM | B18: 18 : 6 | C18: =CONCATENATE("0x",DEC2HEX(H11,4)) -> 0x0010 | F18: 1. The DDR3 device can operate 800/1066/1333/1600 MT/Sec.
A19: DDR3PLLCTL0.BYPASS | B19: 23 | C19: =CONCATENATE("0x",DEC2HEX(I14,1)) -> 0x0 | F19: 2. The DDR3 CLKOUT frequency will be twice of the PLLOUT and DDR3 data rate will be twice of the DDR3 frequency.
F20: 3. Please refer instructions for clarification on actual PLLD/PLLM and its register value.
A186: PLLM | B186: PRED | C186: BYPASS | E186: PREDV_PLUS | F186: PLLM_PLUS | G186: DIVIEDBYTWO | H186: CLKOD
A187: 0 | B187: 0 | C187: 0 | D187: =IF(I14=1,0,IF(O10<400,1,IF(O10>800,1,0))) -> 0 | E187: =SUM(F8+1) -> 1 | F187: =SUM(H11+1) -> 17 | G187: =SUM(K8+1) -> 3 | H187: 0
A188: 1 | B188: 1 | C188: 1 | D188: =IF(I14=1,0,IF(N9<200,1,IF(N9>400,1,0))) -> 1 | H188: 1
A189: 2 | B189: 2 | D189: =IF(I14=1,0,IF(O14<800,1,IF(O14>1600,1,0))) -> 0 | H189: 3
A190: 3 | B190: 3 | H190: 5
A191: 4 | B191: 4 | H191: 7
A192: 5 | B192: 5 | H192: 9
A193: 6 | B193: 6 | H193: 11
A194: 7 | B194: 7 | H194: 13
A195: 8 | B195: 8 | H195: 15
A196: 9 | B196: 9
A197: 10 | B197: 10
A198: 11 | B198: 11
A199: 12 | B199: 12
A200: 13 | B200: 13
A201: 14 | B201: 14
A202: 15 | B202: 15
A203: 16 | B203: 16
A204: 17 | B204: 17
A205: 18 | B205: 18
A206: 19 | B206: 19
A207: 20 | B207: 20
A208: 21 | B208: 21
A209: 22 | B209: 22
A210: 23 | B210: 23
A211: 24 | B211: 24
A212: 25 | B212: 25
A213: 26 | B213: 26
A214: 27 | B214: 27
A215: 28 | B215: 28
A216: 29 | B216: 29
A217: 30 | B217: 30
A218: 31 | B218: 31
A219: 32 | B219: 32
A220: 33 | B220: 33
A221: 34 | B221: 34
A222: 35 | B222: 35
A223: 36 | B223: 36
A224: 37 | B224: 37
A225: 38 | B225: 38
A226: 39 | B226: 39
A227: 40 | B227: 40
A228: 41 | B228: 41
A229: 42 | B229: 42
A230: 43 | B230: 43
A231: 44 | B231: 44
A232: 45 | B232: 45
A233: 46 | B233: 46
A234: 47 | B234: 47
A235: 48 | B235: 48
A236: 49 | B236: 49
A237: 50 | B237: 50
A238: 51 | B238: 51
A239: 52 | B239: 52
A240: 53 | B240: 53
A241: 54 | B241: 54
A242: 55 | B242: 55
A243: 56 | B243: 56
A244: 57 | B244: 57
A245: 58 | B245: 58
A246: 59 | B246: 59
A247: 60 | B247: 60
A248: 61 | B248: 61
A249: 62 | B249: 62
A250: 63 | B250: 63
A251: 64
A252: 65
A253: 66
A254: 67
A255: 68
A256: 69
A257: 70
A258: 71
A259: 72
A260: 73
A261: 74
A262: 75
A263: 76
A264: 77
A265: 78
A266: 79
A267: 80
A268: 81
A269: 82
A270: 83
A271: 84
A272: 85
A273: 86
A274: 87
A275: 88
A276: 89
A277: 90
A278: 91
A279: 92
A280: 93
A281: 94
A282: 95
A283: 96
A284: 97
A285: 98
A286: 99
A287: 100
A288: 101
A289: 102
A290: 103
A291: 104
A292: 105
A293: 106
A294: 107
A295: 108
A296: 109
A297: 110
A298: 111
A299: 112
A300: 113
A301: 114
A302: 115
A303: 116
A304: 117
A305: 118
A306: 119
A307: 120
A308: 121
A309: 122
A310: 123
A311: 124
A312: 125
A313: 126
A314: 127
A315: 128
A316: 129
A317: 130
A318: 131
A319: 132
A320: 133
A321: 134
A322: 135
A323: 136
A324: 137
A325: 138
A326: 139
A327: 140
A328: 141
A329: 142
A330: 143
A331: 144
A332: 145
A333: 146
A334: 147
A335: 148
A336: 149
A337: 150
A338: 151
A339: 152
A340: 153
A341: 154
A342: 155
A343: 156
A344: 157
A345: 158
A346: 159
A347: 160
A348: 161
A349: 162
A350: 163
A351: 164
A352: 165
A353: 166
A354: 167
A355: 168
A356: 169
A357: 170
A358: 171
A359: 172
A360: 173
A361: 174
A362: 175
A363: 176
A364: 177
A365: 178
A366: 179
A367: 180
A368: 181
A369: 182
... 3913 more rows

Sheet PCIe
C2: PCIe Clocking Section
B5: PCIe Mode | C5: GEN 1
H7: Configured Line Rate
B8: PCIECLK (P/N) | C8: 250 | H8: =IF(C5="GEN 1",2.5,5) -> 2.5
G12: Rate Scale | H12: PCIe Line Rate
G13: 0.5 | H13: 5 | I13: =IF(C5="GEN 1","INVALID","GEN 2") -> INVALID
G14: 1 | H14: 2.5 | I14: =IF(C5="GEN 2","INVALID","GEN 1") -> GEN 1
D126: GEN 1 | E126: 100
D127: GEN 2 | E127: 156.25
E128: 250
E129: 312.5

Sheet SRIO
D2: SRIO CLOCKING SECTION
B6: Line Rate | C6: 5
I7: Configured Line Rate
B8: SRIOSGMIICLKP/N | C8: 156.25 | I8: =C6 -> 5
E13: Rate Scale | F13: SGMII Line Rate
E14: 2 | F14: 1.25
E15: 1 | F15: 2.5
E16: 0.5 & 1 | F16: 3.125
E17: 0.5 | F17: 5
C127: 100
A128: 0 | B128: 4 | C128: 10 | D128: =VLOOKUP(E12,B128:C141,MATCH(C143,C127)+1,FALSE) ->  | E128: =IF(F14=1.25,"True","False") -> True | F128: 1.25 | G128: 156.25
A129: 1 | B129: 5 | C129: 14 | E129: =IF(F16=1.25,"True","False") -> False | F129: 2.5 | G129: 250
B130: 6 | C130: 18 | E130: =IF(#REF!=1.25,"True","False") ->  | F130: 3.125 | G130: 312.5
B131: 8 | C131: 20 | E131: =IF(#REF!=1.25,"True","False") ->  | F131: 5
B132: 8.25 | C132: 21
B133: 10 | C133: 28
B134: 12 | C134: 30
B135: 12.5 | C135: 32
B136: 15 | C136: 3C
B137: 16 | C137: 40
B138: 16.5 | C138: 42
B139: 20 | C139: 50
B140: 22 | C140: 58
B141: 25 | C141: 64
C143: 100

Sheet SGMII
D2: SGMII CLOCKING SECTION
B6: Line Rate | C6: 1.25
I7: Configured Line Rate
B8: SRIOSGMIICLKP/N | C8: 156.25 | I8: =C6 -> 1.25
E13: Rate Scale | F13: SGMII Line Rate
E14: 2 | F14: 1.25
C125: 100
A126: 0 | B126: 4 | C126: 10 | D126: =VLOOKUP(E12,B126:C139,MATCH(C141,C125)+1,FALSE) ->  | E126: =IF(F14=1.25,"True","False") -> True | F126: 1.25 | G126: 156.25
A127: 1 | B127: 5 | C127: 14 | E127: =IF(F15=1.25,"True","False") -> False | G127: 250
B128: 6 | C128: 18 | E128: =IF(#REF!=1.25,"True","False") ->  | G128: 312.5
B129: 8 | C129: 20 | E129: =IF(#REF!=1.25,"True","False") -> 
B130: 8.25 | C130: 21
B131: 10 | C131: 28
B132: 12 | C132: 30
B133: 12.5 | C133: 32
B134: 15 | C134: 3C
B135: 16 | C135: 40
B136: 16.5 | C136: 42
B137: 20 | C137: 50
B138: 22 | C138: 58
B139: 25 | C139: 64
C141: 100

Sheet MDIO
C2: MDIO CLOCKING SECTION
B6: SGMII PLL OUTPUT | D6: ÷ | E6: =B7/D7 -> 250 | G6: CLKDIV | I6: MDIO Clock
B7: 2500 | D7: 10 | G7: 100 | I7: =E6/(G7+1) -> 2.475247525 | J7: =IF(I7>2.5,"OUT OF RANGE","") -> 
A10: Registers:
A11: Name | B11: Bit Position | C11: Value
A12: MDIO_CONTROL.CLKDIV | B12: 15 : 0 | C12: =CONCATENATE("0x",DEC2HEX(G7,4)) -> 0x0064

Sheet HYPERLINK
C2: HYPERLINK CLOCKING SECTION
B6: Config Baud Rate | C6: 10
I7: Configured Line Rate
B8: MCMCLKP/N | C8: 156.25 | I8: =C6 -> 10
F13: Rate Scale | G13: HyperLink Line Rate
F14: 0.25 | G14: =C6 -> 10
C127: 100
A128: 0 | B128: 4 | C128: 10 | D128: =VLOOKUP(G12,B128:C141,MATCH(C143,C127)+1,FALSE) ->  | E128: 156.25 | G128: =IF(G14=12.5,"True",IF(G14=6.25,"True",IF(G14=3.125,"True",IF(G14=1.25,"True","False")))) -> False
A129: 1 | B129: 5 | C129: 14 | E129: 250 | G129: =IF(#REF!=12.5,"True",IF(#REF!=6.25,"True",IF(#REF!=3.125,"True",IF(#REF!=1.25,"True","False")))) -> 
B130: 6 | C130: 18 | E130: 312.5 | G130: =IF(#REF!=12.5,"True",IF(#REF!=6.25,"True",IF(#REF!=3.125,"True",IF(#REF!=1.25,"True","False")))) ->  | H130: 10
B131: 8 | C131: 20 | G131: =IF(#REF!=12.5,"True",IF(#REF!=6.25,"True",IF(#REF!=3.125,"True",IF(#REF!=1.25,"True","False")))) -> 
B132: 8.25 | C132: 21
B133: 10 | C133: 28
B134: 12 | C134: 30
B135: 12.5 | C135: 32
B136: 15 | C136: 3C
B137: 16 | C137: 40
B138: 16.5 | C138: 42
B139: 20 | C139: 50
B140: 22 | C140: 58
B141: 25 | C141: 64
C143: 100

Sheet EMIF16
A2: EMIF16 CLOCKING SECTION
B7: EMIF Clock | C7: =(Main_PLL!W31) -> 166.6666667
C8: SYSCLK7
B10: Clock Period, E | C10: =(1/C7)*1000 -> 6
C12: The clock period, E is used to calculate the setup, hold and strobe timing cycles to be programmed in the Async Config Registers.

Sheet TIMER
F1: TIMER CLOCKING SECTION
A6: SYSCLK7 | B6: =(Main_PLL!W31) -> 166.6666667 | G6: =IF(F11,B14,B6) -> 166.6666667 | H6: =IF(F11,"Timer counts when low to high"," ") -> 
N8: Timer Clock
J9: =B14 -> 50 | K9: =IF(B16,"Inverted","Not Inverted") -> Inverted | N9: =IF(K15,J9,G6) -> 166.6666667
F10: TIEN_LO | N10: =IF(K15,K9,H6) -> 
F11: 0
A14: External Clock | B14: 50 | K14: CLKSRC_LO
K15: 0
A16: INVINP_LO | B16: 1
B19: Registers
B20: TIEN_LO | C20: =CONCATENATE("0x",DEC2HEX(F11,1)) -> 0x0
B21: CLKSRC_LO | C21: =CONCATENATE("0x",DEC2HEX(K15,1)) -> 0x0
B22: INVINP_LO | C22: =CONCATENATE("0x",DEC2HEX(B16,1)) -> 0x1
A191: 0
A192: 1

Sheet I2C
B2: I2C CLOCK GENERATION
H3: SYSCLK7
H4: =(Main_PLL!W31) -> 166.6666667
C9: Prescaler | E9: IPSC
E10: 64
E12: =SUM(H4/(E10+1)) -> 2.564102564 | F12: MHz
C14: Clock Divider | E14: ICCL | F14: ICCH
E15: 1 | F15: 1
E17: =SUM((E12/(E15+1+6+F15+1+6))*1000) -> 160.2564103 | F17: KHz
H19: Standard Mode
E22: =E12 -> 2.564102564 | F22: Prescaled module clock must be set to 6.7-13.2 MHz
E23: =E17 -> 160.2564103 | F23: I2C Clock Frequency
D25: ICPSC [7:0] | E25: =CONCATENATE("0x",DEC2HEX(E10,2)) -> 0x40
D26: ICCL [15:0] | E26: =CONCATENATE("0x",DEC2HEX(E15,4)) -> 0x0001
D27: ICCH [15:0] | E27: =CONCATENATE("0x",DEC2HEX(F15,4)) -> 0x0001
B241: IPSC | C241: ICCH | D241: ICCL | E241: IPSC | F241: D | G241: =IF(E10>=2,F244,IF(E10=1,F243,F242)) -> 5 | Q241: IPSC | R241: D | S241: =IF(Q10>=2,R244,IF(Q10=1,R243,R242)) -> 7
B242: 0 | C242: 1 | D242: 1 | E242: 0 | F242: 7 | Q242: 0 | R242: 7
B243: 1 | C243: 2 | D243: 2 | E243: 1 | F243: 6 | Q243: 1 | R243: 6
B244: 2 | C244: 3 | D244: 3 | E244: 2 | F244: 5 | Q244: 2 | R244: 5
B245: 3 | C245: 4 | D245: 4
B246: 4 | C246: 5 | D246: 5
B247: 5 | C247: 6 | D247: 6
B248: 6 | C248: 7 | D248: 7
B249: 7 | C249: 8 | D249: 8
B250: 8 | C250: 9 | D250: 9
B251: 9 | C251: 10 | D251: 10
B252: 10 | C252: 11 | D252: 11
B253: 11 | C253: 12 | D253: 12
B254: 12 | C254: 13 | D254: 13
B255: 13 | C255: 14 | D255: 14
B256: 14 | C256: 15 | D256: 15
B257: 15 | C257: 16 | D257: 16
B258: 16 | C258: 17 | D258: 17
B259: 17 | C259: 18 | D259: 18
B260: 18 | C260: 19 | D260: 19
B261: 19 | C261: 20 | D261: 20
B262: 20 | C262: 21 | D262: 21
B263: 21 | C263: 22 | D263: 22
B264: 22 | C264: 23 | D264: 23
B265: 23 | C265: 24 | D265: 24
B266: 24 | C266: 25 | D266: 25
B267: 25 | C267: 26 | D267: 26
B268: 26 | C268: 27 | D268: 27
B269: 27 | C269: 28 | D269: 28
B270: 28 | C270: 29 | D270: 29
B271: 29 | C271: 30 | D271: 30
B272: 30 | C272: 31 | D272: 31
B273: 31 | C273: 32 | D273: 32
B274: 32 | C274: 33 | D274: 33
B275: 33 | C275: 34 | D275: 34
B276: 34 | C276: 35 | D276: 35
B277: 35 | C277: 36 | D277: 36
B278: 36 | C278: 37 | D278: 37
B279: 37 | C279: 38 | D279: 38
B280: 38 | C280: 39 | D280: 39
B281: 39 | C281: 40 | D281: 40
B282: 40 | C282: 41 | D282: 41
B283: 41 | C283: 42 | D283: 42
B284: 42 | C284: 43 | D284: 43
B285: 43 | C285: 44 | D285: 44
B286: 44 | C286: 45 | D286: 45
B287: 45 | C287: 46 | D287: 46
B288: 46 | C288: 47 | D288: 47
B289: 47 | C289: 48 | D289: 48
B290: 48 | C290: 49 | D290: 49
B291: 49 | C291: 50 | D291: 50
B292: 50 | C292: 51 | D292: 51
B293: 51 | C293: 52 | D293: 52
B294: 52 | C294: 53 | D294: 53
B295: 53 | C295: 54 | D295: 54
B296: 54 | C296: 55 | D296: 55
B297: 55 | C297: 56 | D297: 56
B298: 56 | C298: 57 | D298: 57
B299: 57 | C299: 58 | D299: 58
B300: 58 | C300: 59 | D300: 59
B301: 59 | C301: 60 | D301: 60
B302: 60 | C302: 61 | D302: 61
B303: 61 | C303: 62 | D303: 62
B304: 62 | C304: 63 | D304: 63
B305: 63 | C305: 64 | D305: 64
B306: 64 | C306: 65 | D306: 65
B307: 65 | C307: 66 | D307: 66
B308: 66 | C308: 67 | D308: 67
B309: 67 | C309: 68 | D309: 68
B310: 68 | C310: 69 | D310: 69
B311: 69 | C311: 70 | D311: 70
B312: 70 | C312: 71 | D312: 71
B313: 71 | C313: 72 | D313: 72
B314: 72 | C314: 73 | D314: 73
B315: 73 | C315: 74 | D315: 74
B316: 74 | C316: 75 | D316: 75
B317: 75 | C317: 76 | D317: 76
B318: 76 | C318: 77 | D318: 77
B319: 77 | C319: 78 | D319: 78
B320: 78 | C320: 79 | D320: 79
B321: 79 | C321: 80 | D321: 80
B322: 80 | C322: 81 | D322: 81
B323: 81 | C323: 82 | D323: 82
B324: 82 | C324: 83 | D324: 83
B325: 83 | C325: 84 | D325: 84
B326: 84 | C326: 85 | D326: 85
B327: 85 | C327: 86 | D327: 86
B328: 86 | C328: 87 | D328: 87
B329: 87 | C329: 88 | D329: 88
B330: 88 | C330: 89 | D330: 89
B331: 89 | C331: 90 | D331: 90
B332: 90 | C332: 91 | D332: 91
B333: 91 | C333: 92 | D333: 92
B334: 92 | C334: 93 | D334: 93
B335: 93 | C335: 94 | D335: 94
B336: 94 | C336: 95 | D336: 95
B337: 95 | C337: 96 | D337: 96
B338: 96 | C338: 97 | D338: 97
B339: 97 | C339: 98 | D339: 98
B340: 98 | C340: 99 | D340: 99
B341: 99 | C341: 100 | D341: 100
B342: 100 | C342: 101 | D342: 101
B343: 101 | C343: 102 | D343: 102
B344: 102 | C344: 103 | D344: 103
B345: 103 | C345: 104 | D345: 104
B346: 104 | C346: 105 | D346: 105
B347: 105 | C347: 106 | D347: 106
B348: 106 | C348: 107 | D348: 107
B349: 107 | C349: 108 | D349: 108
B350: 108 | C350: 109 | D350: 109
B351: 109 | C351: 110 | D351: 110
B352: 110 | C352: 111 | D352: 111
B353: 111 | C353: 112 | D353: 112
B354: 112 | C354: 113 | D354: 113
B355: 113 | C355: 114 | D355: 114
B356: 114 | C356: 115 | D356: 115
B357: 115 | C357: 116 | D357: 116
B358: 116 | C358: 117 | D358: 117
B359: 117 | C359: 118 | D359: 118
B360: 118 | C360: 119 | D360: 119
B361: 119 | C361: 120 | D361: 120
B362: 120 | C362: 121 | D362: 121
B363: 121 | C363: 122 | D363: 122
B364: 122 | C364: 123 | D364: 123
B365: 123 | C365: 124 | D365: 124
B366: 124 | C366: 125 | D366: 125
B367: 125 | C367: 126 | D367: 126
B368: 126 | C368: 127 | D368: 127
B369: 127 | C369: 128 | D369: 128
B370: 128 | C370: 129 | D370: 129
B371: 129 | C371: 130 | D371: 130
B372: 130 | C372: 131 | D372: 131
B373: 131 | C373: 132 | D373: 132
B374: 132 | C374: 133 | D374: 133
B375: 133 | C375: 134 | D375: 134
B376: 134 | C376: 135 | D376: 135
B377: 135 | C377: 136 | D377: 136
B378: 136 | C378: 137 | D378: 137
B379: 137 | C379: 138 | D379: 138
B380: 138 | C380: 139 | D380: 139
B381: 139 | C381: 140 | D381: 140
B382: 140 | C382: 141 | D382: 141
B383: 141 | C383: 142 | D383: 142
B384: 142 | C384: 143 | D384: 143
B385: 143 | C385: 144 | D385: 144
B386: 144 | C386: 145 | D386: 145
B387: 145 | C387: 146 | D387: 146
B388: 146 | C388: 147 | D388: 147
B389: 147 | C389: 148 | D389: 148
B390: 148 | C390: 149 | D390: 149
B391: 149 | C391: 150 | D391: 150
B392: 150 | C392: 151 | D392: 151
B393: 151 | C393: 152 | D393: 152
B394: 152 | C394: 153 | D394: 153
B395: 153 | C395: 154 | D395: 154
B396: 154 | C396: 155 | D396: 155
B397: 155 | C397: 156 | D397: 156
B398: 156 | C398: 157 | D398: 157
B399: 157 | C399: 158 | D399: 158
B400: 158 | C400: 159 | D400: 159
B401: 159 | C401: 160 | D401: 160
B402: 160 | C402: 161 | D402: 161
B403: 161 | C403: 162 | D403: 162
B404: 162 | C404: 163 | D404: 163
B405: 163 | C405: 164 | D405: 164
B406: 164 | C406: 165 | D406: 165
B407: 165 | C407: 166 | D407: 166
B408: 166 | C408: 167 | D408: 167
B409: 167 | C409: 168 | D409: 168
B410: 168 | C410: 169 | D410: 169
B411: 169 | C411: 170 | D411: 170
B412: 170 | C412: 171 | D412: 171
B413: 171 | C413: 172 | D413: 172
B414: 172 | C414: 173 | D414: 173
B415: 173 | C415: 174 | D415: 174
B416: 174 | C416: 175 | D416: 175
B417: 175 | C417: 176 | D417: 176
B418: 176 | C418: 177 | D418: 177
B419: 177 | C419: 178 | D419: 178
B420: 178 | C420: 179 | D420: 179
B421: 179 | C421: 180 | D421: 180
B422: 180 | C422: 181 | D422: 181
B423: 181 | C423: 182 | D423: 182
B424: 182 | C424: 183 | D424: 183
B425: 183 | C425: 184 | D425: 184
... 6332 more rows

Sheet SPI
E1: SPI CLOCK GENERATION
D7: SYSCLK7 | F7: Prescale | H7: SPI_CLK
D8: =(Main_PLL!W31) -> 166.6666667 | F8: 0 | H8: =IF(F8=0,SUM(D8/2),SUM(D8/(F8+1))) -> 83.33333333
E11: SPIFMTn [15:8] | G11: =CONCATENATE("0x",DEC2HEX(F8,2)) -> 0x00 | L11: =3*M15 -> 18 | O11: =3*M15 -> 18 | R11: =3*M15 -> 18
L13: =LARGE(L10:L11,1) -> 18 | O13: =LARGE(O10:O11,1) -> 18 | R13: =LARGE(R10:R11,1) -> 18
L14: =(1/L13)*1000 -> 55.55555556 | M14: =(1/#REF!)*1000 ->  | O14: =(1/O13)*1000 -> 55.55555556 | P14: =(1/#REF!)*1000 ->  | R14: =(1/R13)*1000 -> 55.55555556 | S14: =(1/#REF!)*1000 -> 
L15: p | M15: =(1/D8)*1000 -> 6
A45: prescale
A46: 0
A47: 1
A48: 2
A49: 3
A50: 4
A51: 5
A52: 6
A53: 7
A54: 8
A55: 9
A56: 10
A57: 11
A58: 12
A59: 13
A60: 14
A61: 15
A62: 16
A63: 17
A64: 18
A65: 19
A66: 20
A67: 21
A68: 22
A69: 23
A70: 24
A71: 25
A72: 26
A73: 27
A74: 28
A75: 29
A76: 30
A77: 31
A78: 32
A79: 33
A80: 34
A81: 35
A82: 36
A83: 37
A84: 38
A85: 39
A86: 40
A87: 41
A88: 42
A89: 43
A90: 44
A91: 45
A92: 46
A93: 47
A94: 48
A95: 49
A96: 50
A97: 51
A98: 52
A99: 53
A100: 54
A101: 55
A102: 56
A103: 57
A104: 58
A105: 59
A106: 60
A107: 61
A108: 62
A109: 63
A110: 64
A111: 65
A112: 66
A113: 67
A114: 68
A115: 69
A116: 70
A117: 71
A118: 72
A119: 73
A120: 74
A121: 75
A122: 76
A123: 77
A124: 78
A125: 79
A126: 80
A127: 81
A128: 82
A129: 83
A130: 84
A131: 85
A132: 86
A133: 87
A134: 88
A135: 89
A136: 90
A137: 91
A138: 92
A139: 93
A140: 94
A141: 95
A142: 96
A143: 97
A144: 98
A145: 99
A146: 100
A147: 101
A148: 102
A149: 103
A150: 104
A151: 105
A152: 106
A153: 107
A154: 108
A155: 109
A156: 110
A157: 111
A158: 112
A159: 113
A160: 114
A161: 115
A162: 116
A163: 117
A164: 118
A165: 119
A166: 120
A167: 121
A168: 122
A169: 123
A170: 124
A171: 125
A172: 126
A173: 127
A174: 128
A175: 129
A176: 130
A177: 131
A178: 132
A179: 133
A180: 134
A181: 135
A182: 136
A183: 137
A184: 138
A185: 139
A186: 140
A187: 141
A188: 142
A189: 143
A190: 144
A191: 145
A192: 146
A193: 147
A194: 148
A195: 149
A196: 150
A197: 151
A198: 152
A199: 153
A200: 154
A201: 155
A202: 156
A203: 157
A204: 158
A205: 159
A206: 160
A207: 161
A208: 162
A209: 163
A210: 164
A211: 165
A212: 166
A213: 167
A214: 168
A215: 169
A216: 170
A217: 171
A218: 172
A219: 173
A220: 174
A221: 175
A222: 176
A223: 177
A224: 178
A225: 179
A226: 180
A227: 181
A228: 182
A229: 183
A230: 184
A231: 185
A232: 186
A233: 187
A234: 188
A235: 189
A236: 190
A237: 191
... 64 more rows

Sheet UART
C1: UART CLOCK GENERATION
H6: DLH:DLL
C10: SYSCLK7
C11: =(Main_PLL!W31) -> 166.6666667 | J11: BCLK
C30: x16 Over-sampling Mode | I30: x13 Over-sampling Mode
B32: Baud Rate | C32: Divisor Value | D32: Register | E32: Actual Baud Rate | F32: Error (%) | H32: Baud Rate | I32: Divisor Value | J32: Register | K32: Actual Baud Rate | L32: Error (%)
B33: 300 | C33: =TRUNC(G372) -> 34722 | D33: =DEC2HEX(C33,5) -> 087A2 | E33: =SUM(F372/H372) -> 300.00192 | F33: =SUM(I372/bps) -> -6.40004096e-06 | H33: 300 | I33: =TRUNC(G389) -> 42735 | J33: =DEC2HEX(I33,5) -> 0A6EF | K33: =SUM(F372/H389) -> 300.0003 | L33: =SUM(I389/H33) -> -1.000001e-06
B34: 1200 | C34: 8680 | D34: =DEC2HEX(C34,4) -> 21E8 | E34: 1200.076805 | F34: =SUM(I373/B34) -> -6.400409626e-05 | H34: 1200 | I34: 10683 | J34: =DEC2HEX(I34,4) -> 29BB | K34: 1200.085446 | L34: -7.12050698e-05
B35: 2400 | C35: 4340 | D35: 10F4 | E35: 2400.15361 | F35: -6.400409626e-05 | H35: 2400 | I35: 5341 | J35: 14DD | K35: 2400.395585 | L35: -0.0001648271635
B36: 4800 | C36: 2170 | D36: 087A | E36: 4800.30722 | F36: -6.400409626e-05 | H36: 4800 | I36: 2670 | J36: 0A6E | K36: 4801.690195 | L36: -0.0003521239476
B37: 9600 | C37: 1085 | D37: 043D | E37: 9600.614439 | F37: -6.400409626e-05 | H37: 9600 | I37: 1335 | J37: 0537 | K37: 9603.38039 | L37: -0.0003521239476
B38: 19200 | C38: 542 | D38: 021E | E38: 19218.94219 | F38: -0.0009865723657 | H38: 19200 | I38: 667 | J38: 029B | K38: 19221.15865 | L38: -0.001102013096
B39: 28800 | C39: 361 | D39: 0169 | E39: 28855.03232 | F39: -0.001910844362 | H39: 28800 | I39: 445 | J39: 01BD | K39: 28810.14117 | L39: -0.0003521239476
B40: 38400 | C40: 271 | D40: 010F | E40: 38437.88438 | F40: -0.0009865723657 | H40: 38400 | I40: 333 | J40: 014D | K40: 38500.0385 | L40: -0.002605169272
B41: 57600 | C41: 180 | D41: 00B4 | E41: 57870.37037 | F41: -0.004693930041 | H41: 57600 | I41: 222 | J41: 00DE | K41: 57750.05775 | L41: -0.002605169272
B42: 128000 | C42: 81 | D42: 0051 | E42: 128600.823 | F42: -0.004693930041 | H42: 128000 | I42: 100 | J42: 0064 | K42: 128205.1282 | L42: -0.001602564103
B43: 115200 | C43: 90 | D43: 005A | E43: 115740.7407 | F43: -0.004693930041 | H43: 115200 | I43: 111 | J43: 006F | K43: 115500.1155 | L43: -0.002605169272
B44: 230400 | C44: 45 | D44: 002D | E44: 231481.4815 | F44: -0.004693930041 | H44: 230400 | I44: 55 | J44: 0037 | K44: 233100.2331 | L44: -0.01171976172
B45: 460800 | C45: 22 | D45: 0016 | E45: 473484.8485 | F45: -0.027527883 | H45: 460800 | I45: 27 | J45: 001B | K45: 474833.8082 | L45: -0.03045531286
B46: 921600 | C46: 11 | D46: 000B | E46: 946969.697 | F46: -0.027527883 | H46: 921600 | I46: 13 | J46: 000D | K46: 986193.2939 | L46: -0.07008820951
B47: 3000000 | C47: 3 | D47: 0003 | E47: 3472222.222 | F47: -0.1574074074 | H47: 3000000 | I47: 4 | J47: 0004 | K47: 3205128.205 | L47: -0.06837606838
B372: =SUM(B33/1000) -> 0.3 | C372: =SUM(B372*16) -> 4.8 | E372: =SUM(C372*1000) -> 4800 | F372: =SUM(C11*1000000) -> 166666666.7 | G372: =SUM(F372/E372) -> 34722.22222 | H372: =SUM(C33*16) -> 555552 | I372: =SUM(bps-E33) -> -0.001920012288
B373: 1.2 | C373: =SUM(B373*16) -> 19.2 | E373: 19200 | F373: =SUM(C11*1000000) -> 166666666.7 | G373: 8680.555556 | H373: 138880 | I373: =SUM(B34-E34) -> -0.07680491551
B374: 2.4 | C374: =SUM(B374*16) -> 38.4 | E374: 38400 | F374: =SUM(C11*1000000) -> 166666666.7 | G374: 4340.277778 | H374: 69440 | I374: -0.153609831
B375: 4.8 | C375: =SUM(B375*16) -> 76.8 | E375: 76800 | F375: =SUM(C11*1000000) -> 166666666.7 | G375: 2170.138889 | H375: 34720 | I375: -0.3072196621
B376: 9.6 | C376: 153.6 | E376: 153600 | F376: =SUM(C11*1000000) -> 166666666.7 | G376: 1085.069444 | H376: 17360 | I376: -0.6144393241
B377: 19.2 | C377: 307.2 | E377: 307200 | F377: =SUM(C11*1000000) -> 166666666.7 | G377: 542.5347222 | H377: 8672 | I377: -18.94218942
B378: 28.8 | C378: 460.8 | E378: 460800 | F378: =SUM(C11*1000000) -> 166666666.7 | G378: 361.6898148 | H378: 5776 | I378: -55.03231764
B379: 38.4 | C379: 614.4 | E379: 614400 | F379: =SUM(C11*1000000) -> 166666666.7 | G379: 271.2673611 | H379: 4336 | I379: -37.88437884
B380: 57.6 | C380: 921.6 | E380: 921600 | F380: =SUM(C11*1000000) -> 166666666.7 | G380: 180.8449074 | H380: 2880 | I380: -270.3703704
B381: 128 | C381: =SUM(B381*16) -> 2048 | E381: 2048000 | F381: =SUM(C11*1000000) -> 166666666.7 | G381: 81.38020833 | H381: 1296 | I381: -600.8230453
B382: 115.2 | C382: 1843.2 | E382: 1843200 | F382: =SUM(C11*1000000) -> 166666666.7 | G382: 90.4224537 | H382: 1440 | I382: -540.7407407
B383: 230.4 | C383: 3686.4 | E383: 3686400 | F383: =SUM(C11*1000000) -> 166666666.7 | G383: 45.21122685 | H383: 720 | I383: -1081.481481
B384: 460.8 | C384: 7372.8 | E384: 7372800 | F384: =SUM(C11*1000000) -> 166666666.7 | G384: 22.60561343 | H384: 352 | I384: -12684.84848
B385: 921.6 | C385: 14745.6 | E385: 14745600 | F385: =SUM(C11*1000000) -> 166666666.7 | G385: 11.30280671 | H385: 176 | I385: -25369.69697
B386: 3000 | C386: 48000 | E386: 48000000 | F386: =SUM(C11*1000000) -> 166666666.7 | G386: 3.472222222 | H386: 48 | I386: -472222.2222
B389: =SUM(H33/1000) -> 0.3 | C389: =SUM(B389*13) -> 3.9 | E389: =SUM(C389*1000) -> 3900 | F389: =SUM(C11*1000000) -> 166666666.7 | G389: =SUM(F389/E389) -> 42735.04274 | H389: =I33*13 -> 555555 | I389: =SUM(H33-K33) -> -0.0003000003
B390: 1.2 | C390: =SUM(B390*13) -> 15.6 | E390: 15600 | F390: =SUM(C11*1000000) -> 166666666.7 | G390: 10683.76068 | H390: 138879 | I390: -0.08544608376
B391: 2.4 | C391: 31.2 | E391: 31200 | F391: =SUM(C11*1000000) -> 166666666.7 | G391: 5341.880342 | H391: 69433 | I391: -0.3955851924
B392: 4.8 | C392: 62.4 | E392: 62400 | F392: =SUM(C11*1000000) -> 166666666.7 | G392: 2670.940171 | H392: 34710 | I392: -1.690194949
B393: 9.6 | C393: 124.8 | E393: 124800 | F393: =SUM(C11*1000000) -> 166666666.7 | G393: 1335.470085 | H393: 17355 | I393: -3.380389897
B394: 19.2 | C394: 249.6 | E394: 249600 | F394: =SUM(C11*1000000) -> 166666666.7 | G394: 667.7350427 | H394: 8671 | I394: -21.15865144
B395: 28.8 | C395: 374.4 | E395: 374400 | F395: =SUM(C11*1000000) -> 166666666.7 | G395: 445.1566952 | H395: 5785 | I395: -10.14116969
B396: 38.4 | C396: 499.2 | E396: 499200 | F396: =SUM(C11*1000000) -> 166666666.7 | G396: 333.8675214 | H396: 4329 | I396: -100.0385
B397: 57.6 | C397: 748.8 | E397: 748800 | F397: =SUM(C11*1000000) -> 166666666.7 | G397: 222.5783476 | H397: 2886 | I397: -150.0577501
B398: 128 | C398: 1664 | E398: 1664000 | F398: =SUM(C11*1000000) -> 166666666.7 | G398: 100.1602564 | H398: 1300 | I398: -205.1282051
B399: 115.2 | C399: 1497.6 | E399: 1497600 | F399: =SUM(C11*1000000) -> 166666666.7 | G399: 111.2891738 | H399: 1443 | I399: -300.1155001
B400: 230.4 | C400: 2995.2 | E400: 2995200 | F400: =SUM(C11*1000000) -> 166666666.7 | G400: 55.64458689 | H400: 715 | I400: -2700.2331
B401: 460.8 | C401: 5990.4 | E401: 5990400 | F401: =SUM(C11*1000000) -> 166666666.7 | G401: 27.82229345 | H401: 351 | I401: -14033.80817
B402: 921.6 | C402: 11980.8 | E402: 11980800 | F402: =SUM(C11*1000000) -> 166666666.7 | G402: 13.91114672 | H402: 169 | I402: -64593.29389
B403: 3000 | C403: 39000 | E403: 39000000 | F403: =SUM(C11*1000000) -> 166666666.7 | G403: 4.273504274 | H403: 52 | I403: -205128.2051
